fUST/lending_fUST_20260117
["ID","MTS","AMOUNT","RATE_DAILY","PERIOD"]
[402228432,1768612288475,-525.64,0.00023013,3]
[402228433,1768612288485,-1585.89,0.00023013,3]
[402228434,1768612288495,-564.3,0.00023013,3]
[402228435,1768612288506,-768.23,0.00023013,3]
[402228436,1768612288516,-500.0,0.00023013,3]
[402228437,1768612288526,-500.0,0.00023013,3]
[402228438,1768612288535,-1622.98,0.00023013,3]
[402228439,1768612288544,-500.0,0.00023013,3]
[402228440,1768612288553,-1235.52,0.00023013,3]
[402228441,1768612288562,-500.0,0.00023013,3]
[402228442,1768612288571,-645.71,0.00023013,3]
[402228443,1768612288580,-500.0,0.00023013,3]
[402228444,1768612288590,-599.65879694,0.00023013,3]
[402228445,1768612288599,-500.0,0.00023013,3]
[402228446,1768612288608,-500.0,0.00023013,3]
[402228447,1768612288617,-854.24,0.00023013,3]
[402228448,1768612288626,-500.0,0.00023013,3]
[402228449,1768612288635,-1159.08,0.00023013,3]
[402228450,1768612288644,-500.0,0.00023013,3]
[402228451,1768612288653,-1832.87,0.00023013,3]
[402228452,1768612288663,-500.0,0.00023013,3]
[402228453,1768612288671,-500.0,0.00023013,3]
[402228454,1768612288680,-1361.89,0.00023013,3]
[402228455,1768612288690,-1015.39,0.00023013,3]
[402228456,1768612288699,-1092.53,0.00023013,3]
[402228457,1768612288709,-500.0,0.00023013,3]
[402228458,1768612288718,-500.0,0.00023013,3]
[402228459,1768612288731,-500.0,0.00023013,3]
[402228460,1768612288740,-500.0,0.00023013,3]
[402228461,1768612288749,-500.0,0.00023013,3]
[402228462,1768612288759,-2080.52,0.00023013,3]
[402228463,1768612288769,-694.83,0.00023013,3]
[402228464,1768612288778,-631.18,0.00023013,3]
[402228465,1768612288787,-1568.63,0.00023013,3]
[402228466,1768612288796,-500.0,0.00023013,3]
[402228467,1768612288805,-200.0,0.00023013,30]
[402228468,1768612288814,-500.0,0.00023013,3]
[402228469,1768612288824,-200.0,0.00023013,30]
[402228470,1768612288834,-500.0,0.00023013,3]
[402228471,1768612288843,-1023.88,0.00023013,3]
[402228472,1768612288852,-627.95,0.00023013,3]
[402228473,1768612288862,-200.0,0.00023013,30]
[402228474,1768612288872,-1025.72,0.00023013,3]
[402228475,1768612288882,-923.34,0.00023013,3]
[402228476,1768612288891,-500.0,0.00023013,3]
[402228477,1768612288900,-546.51,0.00023013,3]
[402228478,1768612288910,-500.0,0.00023013,3]
[402228479,1768612288920,-500.0,0.00023013,3]
[402228480,1768612288931,-500.0,0.00023013,3]
[402228481,1768612288940,-500.0,0.00023013,3]
[402228482,1768612288950,-1133.27,0.00023013,3]
[402228483,1768612288959,-526.63,0.00023013,3]
[402228484,1768612288968,-296.76420165,0.00023013,3]
[402228485,1768612288977,-500.0,0.00023013,3]
[402228486,1768612288987,-616.88,0.00023013,3]
[402228487,1768612288997,-1350.15,0.00023013,3]
[402228488,1768612289006,-500.0,0.00023013,3]
[402228489,1768612289015,-500.0,0.00023013,3]
[402228490,1768612289024,-500.0,0.00023013,3]
[402228491,1768612289034,-503.95,0.00023013,3]
[402228492,1768612289043,-500.0,0.00023013,3]
[402228493,1768612289053,-500.0,0.00023013,3]
[402228494,1768612289062,-1118.18,0.00023013,3]
[402228495,1768612289072,-2041.61,0.00023013,3]
[402228496,1768612289081,-533.43,0.00023013,3]
[402228497,1768612289091,-500.0,0.00023013,3]
[402228498,1768612289100,-500.0,0.00023013,3]
[402228499,1768612289109,-612.14784699,0.00023013,3]
[402228500,1768612289119,-500.0,0.00023013,3]
[402228501,1768612289129,-785.98,0.00023013,3]
[402228502,1768612289139,-500.0,0.00023013,3]
[402228503,1768612289147,-500.0,0.00023013,3]
[402228504,1768612289156,-500.0,0.00023013,3]
[402228505,1768612289166,-500.0,0.00023013,3]
[402228506,1768612289175,-500.0,0.00023013,3]
[402228507,1768612289184,-1720.81,0.00023013,3]
[402228508,1768612289193,-502.37,0.00023013,3]
[402228509,1768612289202,-817.82,0.00023013,3]
[402228510,1768612289211,-500.0,0.00023013,3]
[402228511,1768612289221,-500.0,0.00023013,3]
[402228512,1768612289231,-845.07,0.00023013,3]
[402228513,1768612289241,-500.0,0.00023013,3]
[402228514,1768612289250,-500.0,0.00023013,3]
[402228515,1768612289259,-500.0,0.00023013,3]
[402228516,1768612289269,-500.0,0.00023013,3]
[402228517,1768612289278,-500.0,0.00023013,3]
[402228518,1768612289286,-500.0,0.00023013,3]
[402228519,1768612289296,-1219.03,0.00023013,3]
[402228520,1768612289306,-500.0,0.00023013,3]
[402228521,1768612289315,-2478.08,0.00023013,3]
[402228522,1768612289324,-500.0,0.00023013,3]
[402228523,1768612289333,-2562.85,0.00023013,3]
[402228524,1768612289343,-562.45603929,0.00023013,3]
[402228525,1768612289352,-782.08,0.00023013,3]
[402228526,1768612289361,-500.0,0.00023013,3]
[402228527,1768612289371,-1683.6,0.00023013,3]
[402228528,1768612289379,-500.0,0.00023013,3]
[402228529,1768612289388,-2019.88,0.00023013,3]
[402228530,1768612289397,-812.22,0.00023013,3]
[402228531,1768612289407,-1783.86,0.00023013,3]
[402228532,1768612289416,-2935.53,0.00023013,3]
[402228533,1768612289425,-500.0,0.00023013,3]
[402228534,1768612289434,-500.0,0.00023013,3]
[402228535,1768612289444,-618.35,0.00023013,3]
[402228536,1768612289453,-500.0,0.00023013,3]
[402228537,1768612289462,-500.0,0.00023013,3]
[402228538,1768612289471,-706.88,0.00023013,3]
[402228539,1768612289480,-500.0,0.00023013,3]
[402228540,1768612289489,-703.68,0.00023013,3]
[402228541,1768612289498,-500.0,0.00023013,3]
[402228542,1768612289507,-500.0,0.00023013,3]
[402228543,1768612289515,-500.0,0.00023013,3]
[402228544,1768612289524,-883.96,0.00023013,3]
[402228545,1768612289533,-526.31720498,0.00023013,3]
[402228546,1768612289542,-1730.4,0.00023013,3]
[402228547,1768612289550,-2229.1,0.00023013,3]
[402228548,1768612289560,-870.56,0.00023013,3]
[402228549,1768612289569,-1965.15,0.00023013,3]
[402228550,1768612289578,-500.0,0.00023013,3]
[402228551,1768612289587,-500.0,0.00023013,3]
[402228552,1768612289595,-500.0,0.00023013,3]
[402228553,1768612289604,-1230.17,0.00023013,3]
[402228554,1768612289613,-500.0,0.00023013,3]
[402228555,1768612289622,-500.0,0.00023013,3]
[402228556,1768612289631,-500.0,0.00023013,3]
[402228557,1768612289640,-500.0,0.00023013,3]
[402228558,1768612289649,-614.54879327,0.00023013,3]
[402228559,1768612289658,-716.67,0.00023013,3]
[402228560,1768612289667,-1014.11,0.00023013,3]
[402228561,1768612289676,-1793.94,0.00023013,3]
[402228562,1768612289686,-500.0,0.00023013,3]
[402228563,1768612289695,-1251.47,0.00023013,3]
[402228564,1768612289704,-500.0,0.00023013,3]
[402228565,1768612289713,-500.0,0.00023013,3]
[402228566,1768612289725,-1993.75,0.00023013,3]
[402228567,1768612289734,-502.12,0.00023013,3]
[402228568,1768612289743,-500.0,0.00023013,3]
[402228569,1768612289752,-500.0,0.00023013,3]
[402228570,1768612289761,-1188.4,0.00023013,3]
[402228571,1768612289770,-500.0,0.00023013,3]
[402228572,1768612289779,-1029.96,0.00023013,3]
[402228573,1768612289788,-1119.18,0.00023013,3]
[402228574,1768612289798,-500.0,0.00023013,3]
[402228575,1768612289807,-512.27,0.00023013,3]
[402228576,1768612289816,-855.99,0.00023013,3]
[402228577,1768612289826,-1815.05,0.00023013,3]
[402228578,1768612289835,-534.52,0.00023013,3]
[402228579,1768612289844,-500.0,0.00023013,3]
[402228580,1768612289853,-535.55,0.00023013,3]
[402228581,1768612289862,-967.4,0.00023013,3]
[402228582,1768612289870,-500.0,0.00023013,3]
[402228583,1768612289879,-500.0,0.00023013,3]
[402228584,1768612289889,-1136.87,0.00023013,3]
[402228585,1768612289898,-2084.88,0.00023013,3]
[402228586,1768612289906,-525.76,0.00023013,3]
[402228587,1768612289915,-500.0,0.00023013,3]
[402228588,1768612289925,-1471.9,0.00023013,3]
[402228589,1768612289935,-500.0,0.00023013,3]
[402228590,1768612289945,-8798.3,0.00023013,3]
[402228591,1768612289954,-564.01,0.00023013,3]
[402228592,1768612289964,-500.0,0.00023013,3]
[402228593,1768612290154,-958.68,0.00023013,3]
[402228594,1768612290164,-1479.47,0.00023013,3]
[402228595,1768612290175,-500.0,0.00023013,3]
[402228596,1768612290185,-500.0,0.00023013,3]
[402228597,1768612290195,-787.07,0.00023013,3]
[402228598,1768612290205,-500.0,0.00023013,3]
[402228599,1768612290214,-976.75,0.00023013,3]
[402228600,1768612290224,-1453.5,0.00023013,3]
[402228601,1768612290233,-500.0,0.00023013,3]
[402228602,1768612290242,-1386.93,0.00023013,3]
[402228603,1768612290252,-500.0,0.00023013,3]
[402228604,1768612290261,-500.0,0.00023013,3]
[402228605,1768612290270,-1742.45,0.00023013,3]
[402228606,1768612290280,-500.0,0.00023013,3]
[402228607,1768612290291,-500.0,0.00023013,3]
[402228608,1768612290301,-500.0,0.00023013,3]
[402228609,1768612290310,-3952.31,0.00023013,3]
[402228610,1768612290319,-500.0,0.00023013,3]
[402228611,1768612290329,-614.82,0.00023013,3]
[402228612,1768612290339,-500.0,0.00023013,3]
[402228613,1768612290349,-523.59,0.00023013,3]
[402228614,1768612290358,-500.0,0.00023013,3]
[402228615,1768612290367,-500.0,0.00023013,3]
[402228616,1768612290376,-1627.08,0.00023013,3]
[402228617,1768612290387,-500.0,0.00023013,3]
[402228618,1768612290396,-500.0,0.00023013,3]
[402228619,1768612290407,-500.0,0.00023013,3]
[402228620,1768612290417,-500.0,0.00023013,3]
[402228621,1768612290427,-1692.55,0.00023013,3]
[402228622,1768612290435,-580.78,0.00023013,3]
[402228623,1768612290444,-500.0,0.00023013,3]
[402228624,1768612290454,-2942.71,0.00023013,3]
[402228625,1768612290463,-1514.63,0.00023013,3]
[402228626,1768612290472,-500.0,0.00023013,3]
[402228627,1768612290481,-1493.78,0.00023013,3]
[402228628,1768612290490,-500.0,0.00023013,3]
[402228629,1768612290500,-500.0,0.00023013,3]
[402228630,1768612290509,-500.0,0.00023013,3]
[402228631,1768612290518,-441.20709906,0.00023013,3]
[402228632,1768612290527,-500.0,0.00023013,3]
[402228633,1768612290536,-500.0,0.00023013,3]
[402228634,1768612290546,-660.52,0.00023013,3]
[402228635,1768612290556,-500.0,0.00023013,3]
[402228636,1768612290566,-1418.91,0.00023013,3]
[402228637,1768612290574,-730.62,0.00023013,3]
[402228638,1768612290584,-500.0,0.00023013,3]
[402228639,1768612290594,-754.34,0.00023013,3]
[402228640,1768612290603,-500.0,0.00023013,3]
[402228641,1768612290612,-500.0,0.00023013,3]
[402228642,1768612290623,-509.00344508,0.00023013,3]
[402228643,1768612290633,-1145.41,0.00023013,3]
[402228644,1768612290642,-500.0,0.00023013,3]
[402228645,1768612290651,-500.0,0.00023013,3]
[402228646,1768612290661,-565.62,0.00023013,3]
[402228647,1768612290670,-500.0,0.00023013,3]
[402228648,1768612290679,-981.72,0.00023013,3]
[402228649,1768612290688,-500.0,0.00023013,3]
[402228650,1768612290699,-500.0,0.00023013,3]
[402228651,1768612290709,-593.53,0.00023013,3]
[402228652,1768612290719,-2793.44,0.00023013,3]
[402228653,1768612290729,-500.0,0.00023013,3]
[402228654,1768612290738,-500.0,0.00023013,3]
[402228655,1768612290748,-856.9,0.00023013,3]
[402228656,1768612290758,-1473.27,0.00023013,3]
[402228657,1768612290768,-542.78,0.00023013,3]
[402228658,1768612290779,-500.0,0.00023013,3]
[402228659,1768612290790,-673.29,0.00023013,3]
[402228660,1768612290800,-529.03425476,0.00023013,3]
[402228661,1768612290810,-500.0,0.00023013,3]
[402228662,1768612290820,-713.13,0.00023013,3]
[402228663,1768612290830,-1228.66,0.00023013,3]
[402228664,1768612290839,-1791.95,0.00023013,3]
[402228665,1768612290848,-855.17,0.00023013,3]
[402228666,1768612290857,-657.4,0.00023013,3]
[402228667,1768612290866,-500.0,0.00023013,3]
[402228668,1768612290875,-500.0,0.00023013,3]
[402228669,1768612290885,-756.59,0.00023013,3]
[402228670,1768612290895,-500.0,0.00023013,3]
[402228671,1768612290904,-665.41,0.00023013,3]
[402228672,1768612290915,-602.92,0.00023013,3]
[402228673,1768612290924,-962.94,0.00023013,3]
[402228674,1768612290933,-500.0,0.00023013,3]
[402228675,1768612290942,-223.37844062,0.00023013,3]
[402228676,1768612290951,-500.0,0.00023013,3]
[402228677,1768612290962,-722.91,0.00023013,3]
[402228678,1768612290971,-1519.18,0.00023013,3]
[402228679,1768612290981,-500.0,0.00023013,3]
[402228680,1768612290991,-1639.28,0.00023013,3]
[402228681,1768612291000,-528.9,0.00023013,3]
[402228682,1768612291009,-500.0,0.00023013,3]
[402228683,1768612291019,-500.0,0.00023013,3]
[402228684,1768612291028,-1186.99,0.00023013,3]
[402228685,1768612291037,-1994.44,0.00023013,3]
[402228686,1768612291047,-523.14,0.00023013,3]
[402228687,1768612291056,-933.57,0.00023013,3]
[402228688,1768612291065,-1547.34,0.00023013,3]
[402228689,1768612291074,-1004.8,0.00023013,3]
[402228690,1768612291084,-500.0,0.00023013,3]
[402228691,1768612291093,-16346.06,0.00023013,3]
[402228692,1768612291102,-500.0,0.00023013,3]
[402228693,1768612291112,-1226.67,0.00023013,3]
[402228694,1768612291121,-612.9,0.00023013,3]
[402228695,1768612291131,-656.08,0.00023013,3]
[402228696,1768612291141,-500.0,0.00023013,3]
[402228697,1768612291150,-500.0,0.00023013,3]
[402228698,1768612291159,-500.0,0.00023013,3]
[402228699,1768612291169,-1118.7,0.00023013,3]
[402228700,1768612291180,-1409.14,0.00023013,3]
[402228701,1768612291189,-500.0,0.00023013,3]
[402228702,1768612291198,-500.0,0.00023013,3]
[402228703,1768612291207,-500.0,0.00023013,3]
[402228704,1768612291216,-500.0,0.00023013,3]
[402228705,1768612291226,-500.0,0.00023013,3]
[402228706,1768612291236,-1384.22,0.00023013,3]
[402228707,1768612291245,-500.0,0.00023013,3]
[402228708,1768612291254,-633.20867898,0.00023013,3]
[402228709,1768612291264,-605.51407588,0.00023013,3]
[402228710,1768612291273,-500.0,0.00023013,3]
[402228711,1768612291281,-500.0,0.00023013,3]
[402228712,1768612291290,-655.85,0.00023013,3]
[402228713,1768612291299,-500.0,0.00023013,3]
[402228714,1768612291308,-1683.12,0.00023013,3]
[402228715,1768612291317,-500.0,0.00023013,3]
[402228716,1768612291326,-1141.76,0.00023013,3]
[402228717,1768612291334,-2466.84,0.00023013,3]
[402228718,1768612291343,-500.0,0.00023013,3]
[402228719,1768612291352,-500.0,0.00023013,3]
[402228720,1768612291361,-500.0,0.00023013,3]
[402228721,1768612291371,-500.0,0.00023013,3]
[402228722,1768612291380,-500.0,0.00023013,3]
[402228723,1768612291391,-703.27,0.00023013,3]
[402228724,1768612291400,-500.0,0.00023013,3]
[402228725,1768612291410,-762.01,0.00023013,3]
[402228726,1768612291420,-1884.7,0.00023013,3]
[402228727,1768612291434,-754.32,0.00023013,3]
[402228728,1768612291444,-500.0,0.00023013,3]
[402228729,1768612291452,-500.0,0.00023013,3]
[402228730,1768612291461,-504.06,0.00023013,3]
[402228731,1768612291470,-500.0,0.00023013,3]
[402228732,1768612291479,-500.0,0.00023013,3]
[402228733,1768612291488,-500.0,0.00023013,3]
[402228734,1768612291497,-500.0,0.00023013,3]
[402228735,1768612291506,-1595.17,0.00023013,3]
[402228736,1768612291515,-1407.78,0.00023013,3]
[402228737,1768612291524,-1591.45,0.00023013,3]
[402228738,1768612291533,-500.0,0.00023013,3]
[402228739,1768612291542,-1092.06,0.00023013,3]
[402228740,1768612291551,-500.0,0.00023013,3]
[402228741,1768612291560,-899.14,0.00023013,3]
[402228742,1768612291569,-500.0,0.00023013,3]
[402228743,1768612291578,-885.73,0.00023013,3]
[402228744,1768612291587,-500.0,0.00023013,3]
[402228745,1768612291596,-1029.09,0.00023013,3]
[402228746,1768612291605,-500.0,0.00023013,3]
[402228747,1768612291615,-500.0,0.00023013,3]
[402228748,1768612291623,-615.64,0.00023013,3]
[402228749,1768612291633,-500.0,0.00023013,3]
[402228750,1768612291641,-500.0,0.00023013,3]
[402228751,1768612291651,-818.32,0.00023013,3]
[402228752,1768612291660,-500.0,0.00023013,2]
[402228753,1768612291669,-500.0,0.00023013,3]
[402228754,1768612291678,-1293.79,0.00023013,3]
[402228755,1768612291687,-261.25662774,0.00023013,3]
[402228756,1768612291696,-599.42,0.00023013,3]
[402228757,1768612291704,-685.41,0.00023013,3]
[402228758,1768612291713,-1974.67,0.00023013,3]
[402228759,1768612291724,-500.0,0.00023013,3]
[402228760,1768612291733,-1560.37,0.00023013,3]
[402228761,1768612291742,-500.0,0.00023013,3]
[402228762,1768612291751,-500.0,0.00023013,3]
[402228763,1768612291760,-500.0,0.00023013,2]
[402228764,1768612291769,-500.0,0.00023013,3]
[402228765,1768612291778,-629.05898636,0.00023013,3]
[402228766,1768612291787,-500.0,0.00023013,3]
[402228767,1768612291796,-500.0,0.00023013,3]
[402228768,1768612291806,-2128.03,0.00023013,3]
[402228769,1768612291815,-2225.62,0.00023013,3]
[402228770,1768612291824,-500.0,0.00023013,3]
[402228771,1768612291833,-500.0,0.00023013,2]
[402228772,1768612291842,-500.0,0.00023013,3]
[402228773,1768612291851,-303.44748223,0.00023013,3]
[402228774,1768612291861,-931.4,0.00023013,3]
[402228775,1768612291870,-500.0,0.00023013,3]
[402228776,1768612291880,-500.0,0.00023013,3]
[402228777,1768612291890,-500.0,0.00023013,3]
[402228778,1768612291899,-500.0,0.00023013,2]
[402228779,1768612291908,-895.04,0.00023013,3]
[402228780,1768612291918,-500.0,0.00023014,5]
[402228781,1768612291927,-450.0,0.00023014,2]
[402228782,1768612291936,-350.0,0.00023014,2]
[402228783,1768612291945,-250.0,0.00023014,2]
[402228784,1768612291954,-777.50580187,0.00023025,26]
[402228785,1768612291963,-2000.0,0.0002309,7]
[402228786,1768612291972,-1000.0,0.000231,7]
[402228787,1768612291982,-752.25214472,0.00023128,2]
[402228788,1768612291991,-363.7,0.00023226,2]
[402228789,1768612292000,-499.0,0.0002326,120]
[402228790,1768612292010,-500.0,0.00023287,3]
[402228791,1768612292019,-500.0,0.00023287,3]
[402228792,1768612292029,-500.0,0.00023287,3]
[402228793,1768612292039,-500.0,0.00023287,3]
[402228794,1768612292048,-500.0,0.00023287,3]
[402228795,1768612292057,-1030.1027638,0.00023287,3]
[402228796,1768612292066,-500.0,0.00023287,3]
[402228797,1768612292075,-642.84381734,0.00023287,3]
[402228798,1768612292084,-500.0,0.00023287,3]
[402228799,1768612292092,-500.0,0.00023287,3]
[402228800,1768612292101,-500.0,0.00023287,3]
[402228801,1768612292110,-500.0,0.00023287,3]
[402228802,1768612292119,-500.0,0.00023287,3]
[402228803,1768612292128,-500.0,0.00023287,3]
[402228804,1768612292136,-500.0,0.00023287,3]
[402228805,1768612292145,-500.0,0.00023287,3]
[402228806,1768612292154,-500.0,0.00023287,3]
[402228807,1768612292163,-500.0,0.00023287,3]
[402228808,1768612292172,-511.9962159,0.00023287,3]
[402228809,1768612292181,-1606.72,0.00023287,3]
[402228810,1768612292191,-1469.77,0.00023287,3]
[402228811,1768612292200,-434.51372797,0.00023287,3]
[402228812,1768612292209,-500.0,0.00023287,3]
[402228813,1768612292218,-627.89,0.00023287,3]
[402228814,1768612292231,-543.89,0.00023287,3]
[402228815,1768612292240,-500.0,0.00023287,3]
[402228816,1768612292249,-500.0,0.00023287,3]
[402228817,1768612292258,-500.0,0.00023287,3]
[402228818,1768612292267,-365.97979888,0.00023287,3]
[402228819,1768612292276,-500.0,0.00023287,3]
[402228820,1768612292285,-643.23,0.00023287,3]
[402228821,1768612292295,-500.0,0.00023287,3]
[402228822,1768612292305,-500.0,0.00023287,3]
[402228823,1768612292314,-972.04,0.00023287,3]
[402228824,1768612292323,-500.0,0.00023287,3]
[402228825,1768612292336,-500.0,0.00023287,3]
[402228826,1768612292345,-1177.42,0.00023287,3]
[402228827,1768612292354,-500.0,0.00023287,3]
[402228828,1768612292364,-1000.0,0.00023287,2]
[402228829,1768612292374,-500.0,0.00023287,3]
[402228830,1768612292383,-1019.12,0.00023287,3]
[402228831,1768612292392,-500.0,0.00023287,3]
[402228832,1768612292401,-884.65,0.00023287,3]
[402228833,1768612292411,-675.11,0.00023287,3]
[402228834,1768612292420,-500.0,0.00023287,3]
[402228835,1768612292429,-982.13,0.00023287,3]
[402228836,1768612292438,-500.0,0.00023287,3]
[402228837,1768612292447,-500.0,0.00023287,3]
[402228838,1768612292456,-500.0,0.00023287,3]
[402228839,1768612292466,-500.0,0.00023287,3]
[402228840,1768612292475,-918.56,0.00023287,3]
[402228841,1768612292485,-500.0,0.00023287,3]
[402228842,1768612292495,-500.0,0.00023287,3]
[402228843,1768612292504,-500.0,0.00023287,3]
[402228844,1768612292514,-499.22141574,0.00023287,3]
[402228845,1768612292523,-500.0,0.00023287,3]
[402228846,1768612292532,-500.0,0.00023287,3]
[402228847,1768612292541,-823.41,0.00023287,3]
[402228848,1768612292551,-500.0,0.00023287,3]
[402228849,1768612292561,-745.47,0.00023287,3]
[402228850,1768612292570,-500.0,0.00023287,3]
[402228851,1768612292581,-559.13,0.00023287,3]
[402228852,1768612292592,-500.0,0.00023287,3]
[402228853,1768612292601,-519.2,0.00023287,3]
[402228854,1768612292611,-500.0,0.00023287,3]
[402228855,1768612292621,-500.0,0.00023287,3]
[402228856,1768612292630,-1010.64,0.00023287,3]
[402228857,1768612292639,-863.28,0.00023287,3]
[402228858,1768612292649,-500.0,0.00023287,3]
[402228859,1768612292659,-1065.68,0.00023287,3]
[402228860,1768612292669,-841.85,0.00023287,3]
[402228861,1768612292678,-500.0,0.00023287,3]
[402228862,1768612292687,-1718.24,0.00023287,3]
[402228863,1768612292696,-500.0,0.00023287,3]
[402228864,1768612292705,-500.0,0.00023287,3]
[402228865,1768612292714,-500.0,0.00023287,3]
[402228866,1768612292726,-500.0,0.00023287,3]
[402228867,1768612292736,-664.42,0.00023287,3]
[402228868,1768612292746,-836.47,0.00023287,3]
[402228869,1768612292755,-607.66354495,0.00023287,3]
[402228870,1768612292764,-500.0,0.00023287,3]
[402228871,1768612292774,-500.0,0.00023287,3]
[402228872,1768612292783,-500.0,0.00023287,3]
[402228873,1768612292792,-568.73,0.00023287,3]
[402228874,1768612292800,-888.54,0.00023287,3]
[402228875,1768612292810,-1228.67,0.00023287,3]
[402228876,1768612292819,-938.01,0.00023287,3]
[402228877,1768612292829,-1143.87,0.00023287,3]
[402228878,1768612292838,-500.0,0.00023287,3]
[402228879,1768612292847,-500.0,0.00023287,3]
[402228880,1768612292856,-685.57,0.00023287,3]
[402228881,1768612292865,-500.0,0.00023287,3]
[402228882,1768612292875,-500.0,0.00023287,3]
[402228883,1768612292884,-500.0,0.00023287,3]
[402228884,1768612292894,-500.0,0.00023287,3]
[402228885,1768612292903,-500.0,0.00023287,3]
[402228886,1768612292912,-500.0,0.00023287,3]
[402228887,1768612292922,-1194.53,0.00023287,3]
[402228888,1768612292931,-1487.38,0.00023287,3]
[402228889,1768612292941,-500.0,0.00023287,3]
[402228890,1768612292949,-536.48,0.00023287,3]
[402228891,1768612292959,-500.0,0.00023287,3]
[402228892,1768612292969,-500.0,0.00023287,2]
[402228893,1768612292978,-1698.69,0.00023287,3]
[402228894,1768612292987,-500.0,0.00023287,3]
[402228895,1768612292996,-500.0,0.00023287,3]
[402228896,1768612293006,-1167.35,0.00023287,3]
[402228897,1768612293195,-628.62,0.00023287,3]
[402228898,1768612293204,-1160.25,0.00023287,3]
[402228899,1768612293213,-500.0,0.00023287,3]
[402228900,1768612293222,-2025.42,0.00023287,3]
[402228901,1768612293232,-167.24774903,0.00023287,3]
[402228902,1768612293241,-500.0,0.00023287,3]
[402228903,1768612293250,-679.33,0.00023287,3]
[402228904,1768612293259,-500.0,0.00023287,3]
[402228905,1768612293268,-530.21,0.00023287,3]
[402228906,1768612293278,-500.0,0.00023287,3]
[402228907,1768612293287,-500.2,0.00023287,3]
[402228908,1768612293296,-569.58,0.00023287,3]
[402228909,1768612293305,-500.0,0.00023287,3]
[402228910,1768612293315,-552.12,0.00023287,3]
[402228911,1768612293324,-500.0,0.00023287,3]
[402228912,1768612293333,-500.0,0.00023287,3]
[402228913,1768612293343,-500.0,0.00023287,3]
[402228914,1768612293353,-500.0,0.00023287,3]
[402228915,1768612293363,-1306.68,0.00023287,3]
[402228916,1768612293372,-500.0,0.00023287,3]
[402228917,1768612293382,-624.94,0.00023287,3]
[402228918,1768612293391,-500.0,0.00023287,3]
[402228919,1768612293401,-613.28,0.00023287,3]
[402228920,1768612293411,-1429.76,0.00023287,3]
[402228921,1768612293420,-500.0,0.00023287,3]
[402228922,1768612293430,-500.0,0.00023287,3]
[402228923,1768612293439,-699.17,0.00023287,3]
[402228924,1768612293449,-913.53,0.00023287,3]
[402228925,1768612293458,-500.0,0.00023287,3]
[402228926,1768612293467,-500.0,0.00023287,3]
[402228927,1768612293476,-1931.0,0.00023287,3]
[402228928,1768612293486,-1057.67,0.00023287,3]
[402228929,1768612293495,-500.0,0.00023287,3]
[402228930,1768612293505,-500.0,0.00023287,3]
[402228931,1768612293514,-1336.63,0.00023287,3]